{"text_format":"3","workbook":"xlsx","n_sheets":2,"sheets":["Prism G2","Currency"],"not_rendered":{"external_links":7,"defined_names":301},"read":"whole","date_system":"1900"}

{"sheet":"Prism G2","index":0,"n_rows":42,"n_cols":41,"rows_kept":42,"merged":[[2,1,2,6],[24,6,24,8],[24,9,24,12],[24,13,24,16],[24,17,24,20],[25,6,25,8],[26,0,28,0],[26,1,28,1],[26,2,28,2],[29,0,33,0],[29,1,33,1],[29,2,33,2],[34,0,35,0],[34,1,35,1],[34,2,35,2],[40,1,40,7],[41,1,64,7]]}
[null,"Pricing Schedule : Prism G2 Support and Maintenance"]
[]
[null,"VENDOR NAME"]
[]
[]
[]
[null,"IMPORTANT NOTES"]
[null,"All cells highlighted in GREEN must be completed"]
[null,"Quoted prices MUST be in ZAR, EXCLUDING VAT and ESCALATIONS"]
[]
[null,"Prism G2 Support and Maintenance"]
[null,"Prices MUST be quoted based on the SCOPE provided"]
[null,"Select the currency from the CURRENCY drop-down list in COLUMN \"H\""]
[]
[null,"Capture the applicable Currency, ROE and ROE Published Date on the \"Currency sheet\". "]
[null,"The adjustments for prevailing rates and the basis for future price adjustments will be determined at time of contracting. "]
[null,"Exchange rate variations may not be claimed for the local mark-up in the pricing structure"]
[]
[null,"NOTE: Provide Price Adjustment formula applicable for the quoted service in Table 1"]
[]
[]
[null,"All Prices must be exclusive of VAT"]
[]
[]
[null," ",{"$nulls":7},"YEAR 1",{"$nulls":3},"YEAR 2",{"$nulls":3},"YEAR 3"]
["Item Number","Category","Description","Environment","Total Estimated Quantity","Unit charge","CURRENCY",null,null,"Unit Price in Nominated Currency","Unit Price in ZAR","Total [Nominated Currency]","Total in ZAR","Unit Price in Nominated Currency","Unit Price in ZAR","Total [Nominated Currency]","Total in ZAR","Unit Price in Nominated Currency","Unit Price in ZAR","Total [Nominated Currency]","Total in ZAR"]
[1,"Support & Maintenance","• Provide software maintenance and support for existing Prism G2.\n• Provide bug fixes, patches and upgrades.\n*Access to the online support portal for online content and collaboration with specialists","Cost Management - Production",50,"Sum",{"$f":"IF(H27=\"\",\"\",IF(H27=\"ZAR\",\"Local\",\"Foreign\"))","v":"Local"},"ZAR",{"$f":"IF(G27=\"\",\"\",IF(G27=\"Foreign\",VLOOKUP(H27,Currency!$E$20:$F$33,2,FALSE),1))","v":{"v":1,"d":"1.00"}},null,{"$f":"J27*$I27","v":0},{"$f":"J27*$E27","v":0},{"$f":"K27*$E27","v":0},0,{"$f":"N27*$I27","v":0},{"$f":"N27*$E27","v":0},{"$f":"O27*$E27","v":0},0,{"$f":"R27*$I27","v":0},{"$f":"R27*$E27","v":0},{"$f":"S27*$E27","v":0},{"$nulls":19},"DKK"]
[{"$nulls":3},"Cost Management - QA",10,"Sum","Local","ZAR",{"$f":"IF(G28=\"\",\"\",IF(G28=\"Foreign\",VLOOKUP(H28,Currency!$E$20:$F$33,2,FALSE),1))","v":{"v":1,"d":"1.00"}},null,0,{"$f":"J28*$E28","v":0},{"$f":"K28*$E28","v":0},0,0,{"$f":"N28*$E28","v":0},{"$f":"O28*$E28","v":0},0,0,{"$f":"R28*$E28","v":0},{"$f":"S28*$E28","v":0}]
[{"$nulls":3},"Cost Management - Development",1,"Sum","Local","ZAR",{"$f":"IF(G29=\"\",\"\",IF(G29=\"Foreign\",VLOOKUP(H29,Currency!$E$20:$F$33,2,FALSE),1))","v":{"v":1,"d":"1.00"}},null,0,{"$f":"J29*$E29","v":0},{"$f":"K29*$E29","v":0},0,0,{"$f":"N29*$E29","v":0},{"$f":"O29*$E29","v":0},0,0,{"$f":"R29*$E29","v":0},{"$f":"S29*$E29","v":0}]
[2,"Professional Service \n(Ad-hoc/ As and when required)","• Specialist investigations, configuration and testing of solutions.\n• Perform business process re-engineering\n•Assist with 3rd line support.","PRISM G2 specialist, Principal",1,"Hourly rate","Local","ZAR",{"$f":"IF(G30=\"\",\"\",IF(G30=\"Foreign\",VLOOKUP(H30,Currency!$E$20:$F$33,2,FALSE),1))","v":{"v":1,"d":"1.00"}},null,0,{"$f":"J30*$E30","v":0},{"$f":"K30*$E30","v":0},0,{"$f":"N30*$I30","v":0},{"$f":"N30*$E30","v":0},{"$f":"O30*$E30","v":0},0,0,{"$f":"R30*$E30","v":0},{"$f":"S30*$E30","v":0}]
[{"$nulls":3},"PRISM G2 Specialist, Intermediate ",1,"Hourly rate",{"$f":"IF(H31=\"\",\"\",IF(H31=\"ZAR\",\"Local\",\"Foreign\"))","v":"Local"},"ZAR",{"$f":"IF(G31=\"\",\"\",IF(G31=\"Foreign\",VLOOKUP(H31,Currency!$E$20:$F$33,2,FALSE),1))","v":{"v":1,"d":"1.00"}},null,{"$f":"J31*$I31","v":0},{"$f":"J31*$E31","v":0},{"$f":"K31*$E31","v":0},0,{"$f":"N31*$I31","v":0},{"$f":"N31*$E31","v":0},{"$f":"O31*$E31","v":0},0,{"$f":"R31*$I31","v":0},{"$f":"R31*$E31","v":0},{"$f":"S31*$E31","v":0},{"$nulls":19},"DKK"]
[{"$nulls":3},"PRISM G2 API Integration Specialist ",1,"Hourly rate",{"$f":"IF(H32=\"\",\"\",IF(H32=\"ZAR\",\"Local\",\"Foreign\"))","v":"Local"},"ZAR",{"$f":"IF(G32=\"\",\"\",IF(G32=\"Foreign\",VLOOKUP(H32,Currency!$E$20:$F$33,2,FALSE),1))","v":{"v":1,"d":"1.00"}},null,{"$f":"J32*$I32","v":0},{"$f":"J32*$E32","v":0},{"$f":"K32*$E32","v":0},null,{"$f":"N32*$I32","v":0},{"$f":"N32*$E32","v":0},{"$f":"O32*$E32","v":0},null,{"$f":"R32*$I32","v":0},{"$f":"R32*$E32","v":0},{"$f":"S32*$E32","v":0}]
[{"$nulls":3},"PRISM G2 Eskom Specific Reporter Developer",1,"Hourly rate","Local","ZAR",{"$f":"IF(G33=\"\",\"\",IF(G33=\"Foreign\",VLOOKUP(H33,Currency!$E$20:$F$33,2,FALSE),1))","v":{"v":1,"d":"1.00"}},null,0,0,0,null,0,0,0,null,0,0,0]
[{"$nulls":3},"PRISM G2 Adminstrator (Data handling)",1,"Hourly rate",{"$f":"IF(H34=\"\",\"\",IF(H34=\"ZAR\",\"Local\",\"Foreign\"))","v":"Local"},"ZAR",{"$f":"IF(G34=\"\",\"\",IF(G34=\"Foreign\",VLOOKUP(H34,Currency!$E$20:$F$33,2,FALSE),1))","v":{"v":1,"d":"1.00"}},null,0,{"$f":"J34*$E34","v":0},{"$f":"K34*$E34","v":0},0,{"$f":"N34*$I34","v":0},{"$f":"N34*$E34","v":0},{"$f":"O34*$E34","v":0},0,0,{"$f":"R34*$E34","v":0},{"$f":"S34*$E34","v":0},{"$nulls":19},"HKD"]
[3,"Training (as and and when required)","Online Training (Support staff and System users)","Training (Support Staff)",1,"Per delegate","Local","ZAR",{"$f":"IF(G35=\"\",\"\",IF(G35=\"Foreign\",VLOOKUP(H35,Currency!$E$20:$F$33,2,FALSE),1))","v":{"v":1,"d":"1.00"}},null,{"$f":"J35*$I35","v":0},{"$f":"J35*$E35","v":0},{"$f":"K35*$E35","v":0},0,{"$f":"N35*$I35","v":0},{"$f":"N35*$E35","v":0},{"$f":"O35*$E35","v":0},0,{"$f":"R35*$I35","v":0},{"$f":"R35*$E35","v":0},{"$f":"S35*$E35","v":0},{"$nulls":19},"DKK"]
[{"$nulls":3},"Training (System Users)",1,"Per delegate","Local","ZAR",{"$f":"IF(G36=\"\",\"\",IF(G36=\"Foreign\",VLOOKUP(H36,Currency!$E$20:$F$33,2,FALSE),1))","v":{"v":1,"d":"1.00"}},null,0,{"$f":"J36*$E35","v":0},{"$f":"K36*$E35","v":0},0,0,{"$f":"N36*$E35","v":0},{"$f":"O36*$E35","v":0},0,0,{"$f":"R36*$E35","v":0},{"$f":"S36*$E35","v":0}]
[null,"Total ",{"$nulls":10},{"$f":"SUM(M27:M29)","v":0},{"$nulls":3},{"$f":"SUM(Q27:Q29)","v":0},{"$nulls":3},{"$f":"SUM(U27:U29)","v":0}]
[]
[null,"GRAND TOTAL"]
[]
[null,"TABLE 1: PRICING ASSUMPTIONS (INCLUDE ANY PRICING ASSUMPTIONS USED TO DETERMINE THE PRICES).\nINDICATE PRICE ADJUSTMENT FORMULA, CLEARLY REFERENCE THE ITEMS APPLICABLE"]
[null," "]

{"sheet":"Currency","index":1,"n_rows":33,"n_cols":8,"rows_kept":33,"merged":[[1,1,1,5],[6,2,6,7],[7,1,9,1],[7,2,7,7],[7,15,7,20],[8,2,8,7],[9,2,9,7],[10,2,10,7],[11,2,11,7],[12,1,14,1],[12,2,12,7],[13,2,13,7],[14,2,14,7],[17,2,17,7]]}
[]
[null,{"$f":"'Prism G2'!B3","v":"VENDOR NAME"}]
[]
[null,"EXCHANGE RATES FOR MULTIPLE CURRENCIES"]
[]
[null,"NOTES:"]
[null,1,"The table below needs to be completed if the Employer will be exposed to any currency fluctuation as stipulated in Secondary Clause X3.  For conversion of the foreign portions to Rand, please use the South African Reserve Bank's (SARB) exchange rate at 12:00 on the day of advertisement of the bid.  This is in terms of the Preferential Procurement Policy Framework Act (PPPFA) with which the Employer has to comply.\nNB: Tenderers must submit proof of the SARB rate(s) of exchange used  "]
[null,2,"The following URL (electronic route) is to be followed to access the relevant SARB rates on their web pages:\n"]
[null,null,"www.resbank.co.za"]
[null,null,"-  Select Research\n-  Then select Rates\n-  Click on \"Select historical exchange rates and other interest rates\"\n-  Clicking on the exchange rate in the following page opens the daily rates per currency and SA Rand"]
[null,3,"The Employer deals only in the currencies listed below unless other currencies are specifically approved for this tender.  Kindly notify the Employer of any currency that the tenderer intends to use, but is not stipulated in the table, to consider sanctioning such currency.  Sufficient time must be allowed for the assessment and to respond to such request.  The onus is on the tenderer to submit a bid with approved currencies"]
[null,4,"The format in which the exchange rate must be inserted in the table is:  1 (One) Foreign Currency = R Amount  (i.e. the Rand amount for one of each foreign currency applicable).  Exchange rates must be rounded to 4 decimals\n\nNB :  Only the USD/ZAR, GBP/ZAR and EUR/ZAR are published in this way on the SARB web pages above.  The Rand rate with the other currencies must be inverted (1/Foreign Currency Rate) in order to list it in the required format in the table below\n"]
[null,5,"All information in the table below must conform with all other equivalent information in the offer. "]
[null,null,"Payment in terms of Payment Method 2  is considered as a \"foreign payment\" although it will be effected in South African Rand. However, amounts for  \"F.O.R. Price-Goods supplied from Imported Items\", are NOT considered as \"foreign payments\""]
[null,null,"If more than one payment method apply for a currency, the Tenderer must request an additional row be inserted in the table in order to split the values and identify the relevant method.   "]
[]
[]
[null,null,"MULTIPLE CURRENCIES"]
[null,null,"No","Currency Description","Code","Exchange Rate Currency 1,00 =","Date Published","Source"]
[null,null,1,"Australian Dollar","AUD"]
[null,null,2,"Canadian Dollar","CAN"]
[null,null,3,"Swiss Franc","CHF"]
[null,null,4,"Danish Krone","DKK"]
[null,null,5,"European Currency","EUR"]
[null,null,6,"British Pound","GBP"]
[null,null,7,"Hong Kong Dollar","HKD"]
[null,null,8,"Japanese Yen","JPY"]
[null,null,9,"Norwegian Krone","NOK"]
[null,null,10,"New Zealand Dollar","NZD"]
[null,null,11,"Swedish Krone","SEK"]
[null,null,12,"Singapore Dollar","SGD"]
[null,null,13,"United States Dollar","USD"]
[null,null,14,"South African Rand","ZAR",{"v":1,"d":"R 1.000000"}]